fUSD/lending_fUSD_20250906
["ID","MTS","AMOUNT","RATE_DAILY","PERIOD"]
[383803091,1757123438727,-152.79292113,0.00035516,2]
[383803093,1757123438737,-150.0,0.00035516,2]
[383803095,1757123438746,-155.27565877,0.00035516,2]
[383803097,1757123438755,-150.0,0.00035516,2]
[383803099,1757123438764,-150.0,0.00035516,2]
[383803100,1757123438774,-150.0,0.00035516,2]
[383803102,1757123438783,-201.01885817,0.00035516,2]
[383803104,1757123438792,-150.0,0.00035516,2]
[383803106,1757123438802,-150.0,0.00035516,2]
[383803107,1757123438812,-150.0,0.00035516,2]
[383803109,1757123438821,-150.0,0.00035516,2]
[383803111,1757123438831,-150.0,0.00035516,2]
[383803113,1757123438839,-150.0,0.00035516,2]
[383803115,1757123438849,-150.0,0.00035516,2]
[383803116,1757123438858,-150.0,0.00035516,2]
[383803131,1757123438867,-150.0,0.00035516,2]
[383803133,1757123439034,-150.0,0.00035516,2]
[383803135,1757123439044,-6576.34236897,0.00035516,2]
[383803137,1757123439054,-15978.79442662,0.00035605,2]
[383803138,1757123439064,-8548.93719268,0.00035606,2]
[383803140,1757123439078,-67631.8364123,0.00035606,2]
[383803142,1757123439087,-1100.57,0.00035606,2]
[383803144,1757123439096,-400.0,0.00035616,10]
[383803146,1757123439106,-409.31384307,0.00035616,10]
[383803147,1757123439115,-400.0,0.00035616,10]
[383803149,1757123439126,-409.72340487,0.00035616,10]
[383803151,1757123439135,-403.13643695,0.00035616,10]
[383803153,1757123439145,-405.33005724,0.00035616,10]
[383803155,1757123439156,-400.0,0.00035616,10]
[383803157,1757123439165,-400.0,0.00035616,10]
[383803159,1757123439174,-419.31950563,0.00035616,10]
[383803160,1757123439183,-405.61211865,0.00035616,10]
[383803162,1757123439193,-500.0,0.00035616,10]
[383803164,1757123439203,-500.0,0.00035616,10]
[383803166,1757123439212,-503.44359349,0.00035616,10]
[383803168,1757123439222,-407.42827153,0.00035616,10]
[383803171,1757123439231,-404.16395858,0.00035616,10]
[383803173,1757123439241,-404.71783146,0.00035616,10]
[383803174,1757123439250,-400.0,0.00035616,10]
[383803176,1757123439259,-403.78702488,0.00035616,10]
[383803178,1757123439268,-400.0,0.00035616,10]
[383803180,1757123439278,-403.71070377,0.00035616,10]
[383803182,1757123439288,-400.0,0.00035616,10]
[383803183,1757123439297,-404.89662115,0.00035616,10]
[383803185,1757123439306,-405.19397258,0.00035616,10]
[383803187,1757123439316,-245.61561794,0.00035616,10]
[383803189,1757123439325,-402.54620299,0.00035616,10]
[383803192,1757123439335,-406.52088778,0.00035616,10]
[383803194,1757123439343,-407.8448966,0.00035616,10]
[383803197,1757123439353,-410.41295317,0.00035616,10]
[383803200,1757123439362,-420.55036027,0.00035616,10]
[383803203,1757123439372,-401.25883523,0.00035616,10]
[383803205,1757123439381,-415.48627873,0.00035616,10]
[383803208,1757123439390,-411.94778724,0.00035616,10]
[383803210,1757123439400,-400.0,0.00035616,10]
[383803213,1757123439409,-403.14750331,0.00035616,10]
[383803216,1757123439418,-401.0520559,0.00035616,10]
[383803220,1757123439428,-402.44166124,0.00035616,10]
[383803223,1757123439439,-406.70485356,0.00035616,10]
[383803226,1757123439449,-403.54322458,0.00035616,10]
[383803229,1757123439458,-400.0,0.00035616,10]
[383803232,1757123439467,-402.30135585,0.00035616,10]
[383803235,1757123439476,-403.7939236,0.00035616,10]
[383803237,1757123439485,-414.80878072,0.00035616,10]
[383803240,1757123439494,-311.07096551,0.00035616,2]
[383803243,1757123439504,-403.58268641,0.00035616,10]
[383803246,1757123439513,-375.50134754,0.00035616,10]
[383803249,1757123439522,-400.99713667,0.00035616,10]
[383803252,1757123439531,-404.61625061,0.00035616,10]
[383803254,1757123439540,-404.06390086,0.00035616,10]
[383803257,1757123439549,-407.14193772,0.00035616,10]
[383803260,1757123439558,-416.45984888,0.00035616,10]
[383803263,1757123439568,-405.42518153,0.00035616,10]
[383803266,1757123439577,-400.0,0.00035616,10]
[383803268,1757123439586,-402.42449518,0.00035616,10]
[383803270,1757123439596,-400.0,0.00035616,10]
[383803273,1757123439606,-402.50312666,0.00035616,10]
[383803276,1757123439615,-401.98489778,0.00035616,10]
[383803279,1757123439625,-404.68817169,0.00035616,10]
[383803282,1757123439634,-400.0,0.00035616,10]
[383803284,1757123439644,-401.40177836,0.00035616,10]
[383803287,1757123439653,-413.17042133,0.00035616,10]
[383803290,1757123439662,-405.54697921,0.00035616,10]
[383803293,1757123439672,-401.81626062,0.00035616,10]
[383803296,1757123439681,-400.0,0.00035616,10]
[383803299,1757123439690,-400.0,0.00035616,10]
[383803302,1757123439699,-400.0,0.00035616,10]
[383803304,1757123439709,-400.0,0.00035616,10]
[383803307,1757123439718,-400.0,0.00035616,10]
[383803310,1757123439727,-257.52717466,0.00035616,10]
[383803313,1757123439736,-416.93926176,0.00035616,10]
[383803316,1757123439745,-406.94352492,0.00035616,10]
[383803318,1757123439754,-406.25005968,0.00035616,10]
[383803319,1757123439763,-407.78064146,0.00035616,10]
[383803321,1757123439773,-409.07311138,0.00035616,10]
[383803323,1757123439782,-409.89048821,0.00035616,10]
[383803326,1757123439791,-403.72702331,0.00035616,10]
[383803329,1757123439800,-400.0,0.00035616,10]
[383803330,1757123439810,-409.62717943,0.00035616,10]
[383803332,1757123439819,-400.0,0.00035616,10]
[383803334,1757123439828,-403.27968265,0.00035616,10]
[383803336,1757123439837,-403.79301871,0.00035616,10]
[383803338,1757123439846,-403.87204233,0.00035616,10]
[383803340,1757123439855,-405.44224468,0.00035616,10]
[383803341,1757123439865,-400.0,0.00035616,10]
[383803343,1757123439874,-403.57424039,0.00035616,10]
[383803345,1757123439884,-400.0,0.00035616,10]
[383803347,1757123439893,-410.21366694,0.00035616,10]
[383803349,1757123439902,-291.03288635,0.00035616,10]
[383803351,1757123439912,-414.9998185,0.00035616,10]
[383803352,1757123439921,-400.0,0.00035616,10]
[383803354,1757123439931,-401.28825308,0.00035616,10]
[383803357,1757123439940,-412.04065226,0.00035616,10]
[383803360,1757123439949,-403.63845566,0.00035616,10]
[383803363,1757123439959,-402.41728783,0.00035616,10]
[383803366,1757123439968,-405.77136777,0.00035616,10]
[383803368,1757123439977,-406.51484392,0.00035616,10]
[383803370,1757123439987,-409.04872991,0.00035616,10]
[383803371,1757123439995,-400.0,0.00035616,10]
[383803372,1757123440005,-400.0,0.00035616,10]
[383803373,1757123440014,-406.85551023,0.00035616,10]
[383803374,1757123440023,-401.95306746,0.00035616,10]
[383803375,1757123440032,-400.0,0.00035616,10]
[383803376,1757123440041,-210.47147096,0.00035616,7]
[383803377,1757123440050,-403.30458217,0.00035616,10]
[383803378,1757123440059,-405.72348869,0.00035616,10]
[383803379,1757123440068,-403.85352991,0.00035616,10]
[383803380,1757123440080,-400.0,0.00035616,10]
[383803381,1757123440089,-500.0,0.00035616,10]
[383803382,1757123440098,-511.07830417,0.00035616,10]
[383803383,1757123440107,-400.0,0.00035616,10]
[383803384,1757123440116,-404.85077501,0.00035616,10]
[383803385,1757123440125,-409.83962454,0.00035616,10]
[383803387,1757123440135,-509.12251161,0.00035616,10]
[383803388,1757123440144,-400.0,0.00035616,10]
[383803390,1757123440153,-403.87505756,0.00035616,10]
[383803392,1757123440164,-413.68619784,0.00035616,10]
[383803394,1757123440174,-403.62178983,0.00035616,10]
[383803395,1757123440183,-400.0,0.00035616,10]
[383803397,1757123440192,-403.64941042,0.00035616,10]
[383803400,1757123440202,-400.0,0.00035616,10]
[383803401,1757123440211,-400.0,0.00035616,10]
[383803404,1757123440221,-414.39390276,0.00035616,10]
[383803406,1757123440230,-400.0,0.00035616,10]
[383803407,1757123440240,-405.04193396,0.00035616,10]
[383803410,1757123440250,-403.24224863,0.00035616,10]
[383803412,1757123440259,-400.0,0.00035616,10]
[383803414,1757123440269,-403.00165426,0.00035616,10]
[383803415,1757123440278,-411.22191275,0.00035616,10]
[383803417,1757123440288,-401.43988901,0.00035616,10]
[383803420,1757123440297,-400.0,0.00035616,10]
[383803422,1757123440307,-408.63605943,0.00035616,10]
[383803423,1757123440316,-402.33691886,0.00035616,10]
[383803425,1757123440326,-403.26088383,0.00035616,10]
[383803427,1757123440335,-405.30374896,0.00035616,10]
[383803429,1757123440344,-401.28346132,0.00035616,10]
[383803431,1757123440354,-407.30413362,0.00035616,10]
[383803433,1757123440363,-404.18885488,0.00035616,10]
[383803435,1757123440372,-400.0,0.00035616,10]
[383803437,1757123440381,-408.40210605,0.00035616,10]
[383803439,1757123440390,-402.734711,0.00035616,10]
[383803441,1757123440399,-400.0,0.00035616,10]
[383803443,1757123440409,-401.57274125,0.00035616,10]
[383803445,1757123440418,-400.0,0.00035616,10]
[383803447,1757123440427,-409.64038907,0.00035616,10]
[383803449,1757123440437,-412.12694251,0.00035616,10]
[383803451,1757123440446,-509.04118898,0.00035616,10]
[383803453,1757123440455,-402.27438601,0.00035616,10]
[383803455,1757123440465,-403.19915438,0.00035616,10]
[383803457,1757123440474,-425.99802961,0.00035616,10]
[383803459,1757123440483,-402.81163659,0.00035616,10]
[383803461,1757123440492,-402.25992269,0.00035616,10]
[383803463,1757123440501,-400.0,0.00035616,10]
[383803466,1757123440510,-400.0,0.00035616,10]
[383803467,1757123440519,-402.21758471,0.00035616,10]
[383803469,1757123440528,-406.00359981,0.00035616,10]
[383803471,1757123440538,-400.0,0.00035616,10]
[383803473,1757123440547,-400.0,0.00035616,10]
[383803476,1757123440557,-400.0,0.00035616,10]
[383803477,1757123440566,-402.83512403,0.00035616,10]
[383803479,1757123440575,-413.82121563,0.00035616,10]
[383803481,1757123440584,-400.0,0.00035616,10]
[383803483,1757123440593,-400.0,0.00035616,10]
[383803485,1757123440602,-404.14531586,0.00035616,10]
[383803487,1757123440611,-400.0,0.00035616,10]
[383803489,1757123440620,-405.88616848,0.00035616,10]
[383803491,1757123440629,-400.0,0.00035616,10]
[383803493,1757123440638,-400.0,0.00035616,10]
[383803495,1757123440647,-403.03182146,0.00035616,10]
[383803497,1757123440657,-400.0,0.00035616,10]
[383803499,1757123440667,-401.62218486,0.00035616,10]
[383803501,1757123440676,-414.59963908,0.00035616,10]
[383803503,1757123440685,-408.41946625,0.00035616,10]
[383803505,1757123440694,-400.0,0.00035616,10]
[383803507,1757123440703,-404.61871847,0.00035616,10]
[383803509,1757123440712,-405.42979582,0.00035616,10]
[383803511,1757123440721,-405.1540346,0.00035616,10]
[383803513,1757123440731,-407.33006625,0.00035616,10]
[383803515,1757123440739,-402.43623711,0.00035616,10]
[383803517,1757123440748,-403.09928626,0.00035616,10]
[383803519,1757123440758,-409.13836992,0.00035616,10]
[383803521,1757123440767,-411.99432546,0.00035616,10]
[383803523,1757123440776,-401.70343396,0.00035616,10]
[383803525,1757123440785,-405.567265,0.00035616,10]
[383803527,1757123440794,-408.86659822,0.00035616,10]
[383803529,1757123440803,-402.75563921,0.00035616,10]
[383803531,1757123440812,-411.57011,0.00035616,10]
[383803533,1757123440821,-408.81989536,0.00035616,10]
[383803535,1757123440831,-402.87260733,0.00035616,10]
[383803537,1757123440840,-400.0,0.00035616,10]
[383803539,1757123440849,-405.20113819,0.00035616,10]
[383803541,1757123440860,-401.55704535,0.00035616,10]
[383803543,1757123440869,-400.0,0.00035616,10]
[383803545,1757123440879,-481.48037288,0.00035616,10]
[383803547,1757123440888,-400.0,0.00035616,10]
[383803549,1757123440898,-500.0,0.00035616,10]
[383803551,1757123440907,-500.0,0.00035616,10]
[383803553,1757123440916,-400.0,0.00035616,10]
[383803555,1757123440926,-461.21,0.00035616,10]
[383803557,1757123440935,-518.53342399,0.00035616,10]
[383803559,1757123440944,-403.99802227,0.00035616,10]
[383803561,1757123440952,-408.39357909,0.00035616,10]
[383803563,1757123440961,-400.0,0.00035616,10]
[383803565,1757123440971,-409.3443423,0.00035616,10]
[383803567,1757123440980,-401.41163185,0.00035616,10]
[383803569,1757123440989,-400.0,0.00035616,10]
[383803571,1757123440999,-400.87111914,0.00035616,10]
[383803573,1757123441008,-400.0,0.00035616,10]
[383803575,1757123441016,-400.0,0.00035616,10]
[383803577,1757123441026,-400.0,0.00035616,10]
[383803579,1757123441035,-400.0,0.00035616,10]
[383803581,1757123441044,-400.0,0.00035616,10]
[383803583,1757123441053,-402.8748059,0.00035616,10]
[383803585,1757123441063,-402.51467028,0.00035616,10]
[383803588,1757123441076,-405.87516237,0.00035616,10]
[383803589,1757123441086,-439.4975388,0.00035616,10]
[383803592,1757123441095,-400.0,0.00035616,10]
[383803593,1757123441104,-402.92630169,0.00035616,10]
[383803595,1757123441113,-400.0,0.00035616,10]
[383803598,1757123441125,-405.32744829,0.00035616,10]
[383803600,1757123441134,-426.56710997,0.00035616,10]
[383803602,1757123441143,-409.94681269,0.00035616,10]
[383803604,1757123441153,-400.0,0.00035616,10]
[383803605,1757123441163,-452.6228682,0.00035616,10]
[383803607,1757123441172,-407.66763212,0.00035616,10]
[383803609,1757123441181,-405.23697851,0.00035616,10]
[383803611,1757123441190,-407.64562747,0.00035616,10]
[383803613,1757123441200,-453.71900571,0.00035616,10]
[383803615,1757123441209,-401.87683793,0.00035616,10]
[383803617,1757123441219,-400.0,0.00035616,10]
[383803619,1757123441228,-406.67916877,0.00035616,10]
[383803621,1757123441238,-400.0,0.00035616,10]
[383803623,1757123441247,-406.81484012,0.00035616,10]
[383803625,1757123441256,-400.0,0.00035616,10]
[383803627,1757123441265,-479.73463839,0.00035616,10]
[383803629,1757123441275,-438.19010608,0.00035616,10]
[383803631,1757123441284,-400.0,0.00035616,10]
[383803633,1757123441293,-403.10225537,0.00035616,10]
[383803635,1757123441302,-410.56786271,0.00035616,10]
[383803637,1757123441311,-400.0,0.00035616,10]
[383803639,1757123441320,-403.7241048,0.00035616,10]
[383803641,1757123441329,-402.13491214,0.00035616,10]
[383803643,1757123441339,-400.0,0.00035616,10]
[383803645,1757123441348,-413.01424867,0.00035616,10]
[383803647,1757123441356,-408.42767629,0.00035616,10]
[383803649,1757123441365,-404.57008539,0.00035616,10]
[383803651,1757123441375,-400.0,0.00035616,10]
[383803653,1757123441385,-402.10975448,0.00035616,10]
[383803655,1757123441394,-400.0,0.00035616,10]
[383803657,1757123441404,-400.0,0.00035616,10]
[383803659,1757123441414,-402.87922631,0.00035616,10]
[383803661,1757123441424,-400.0,0.00035616,10]
[383803663,1757123441434,-400.0,0.00035616,10]
[383803665,1757123441444,-400.0,0.00035616,10]
[383803667,1757123441453,-416.99262684,0.00035616,10]
[383803669,1757123441463,-408.68214387,0.00035616,10]
[383803671,1757123441473,-408.91882291,0.00035616,10]
[383803673,1757123441483,-400.0,0.00035616,10]
[383803675,1757123441493,-400.0,0.00035616,10]
[383803677,1757123441502,-409.02456264,0.00035616,10]
[383803679,1757123441511,-400.0,0.00035616,10]
[383803681,1757123441521,-406.54615682,0.00035616,10]
[383803683,1757123441530,-411.71038896,0.00035616,10]
[383803685,1757123441539,-405.08047099,0.00035616,10]
[383803687,1757123441549,-400.0,0.00035616,10]
[383803689,1757123441559,-400.0,0.00035616,10]
[383803691,1757123441568,-404.65779463,0.00035616,10]
[383803693,1757123441578,-411.34896835,0.00035616,10]
[383803695,1757123441587,-402.78253489,0.00035616,10]
[383803697,1757123441596,-403.32911038,0.00035616,10]
[383803699,1757123441605,-410.14492303,0.00035616,10]
[383803701,1757123441615,-403.04406145,0.00035616,10]
[383803703,1757123441627,-400.0,0.00035616,10]
[383803705,1757123441637,-400.0,0.00035616,10]
[383803707,1757123441647,-409.68243779,0.00035616,10]
[383803709,1757123441656,-403.53488498,0.00035616,10]
[383803711,1757123441667,-400.0,0.00035616,10]
[383803713,1757123441677,-400.0,0.00035616,10]
[383803715,1757123441687,-415.74176381,0.00035616,10]
[383803717,1757123441697,-493.60117124,0.00035616,10]
[383803719,1757123441707,-404.47735923,0.00035616,10]
[383803721,1757123441716,-415.75821473,0.00035616,10]
[383803723,1757123441725,-418.08515781,0.00035616,10]
[383803725,1757123441734,-500.0,0.00035616,10]
[383803727,1757123441744,-500.0,0.00035616,10]
[383803729,1757123441753,-503.53325118,0.00035616,10]
[383803731,1757123441762,-404.54027275,0.00035616,10]
[383803733,1757123441772,-400.0,0.00035616,10]
[383803735,1757123441783,-400.0,0.00035616,10]
[383803737,1757123441793,-400.0,0.00035616,10]
[383803739,1757123441802,-410.33815085,0.00035616,10]
[383803741,1757123441812,-414.24095518,0.00035616,10]
[383803743,1757123441821,-402.9719709,0.00035616,10]
[383803745,1757123441831,-400.0,0.00035616,10]
[383803747,1757123441840,-400.0,0.00035616,10]
[383803749,1757123441849,-409.21922732,0.00035616,10]
[383803751,1757123441859,-403.60815579,0.00035616,10]
[383803753,1757123441870,-407.57147006,0.00035616,10]
[383803755,1757123441879,-404.96972651,0.00035616,10]
[383803757,1757123441889,-409.92788146,0.00035616,10]
[383803759,1757123441899,-400.0,0.00035616,10]
[383803761,1757123441908,-400.0,0.00035616,10]
[383803775,1757123442038,-402.63045624,0.00035616,10]
[383803777,1757123442048,-400.0,0.00035616,10]
[383803779,1757123442058,-409.69187107,0.00035616,10]
[383803782,1757123442068,-400.0,0.00035616,10]
[383803784,1757123442083,-400.0,0.00035616,10]
[383803786,1757123442092,-403.66556434,0.00035616,10]
[383803787,1757123442101,-402.9847383,0.00035616,10]
[383803790,1757123442111,-402.55303137,0.00035616,10]
[383803792,1757123442122,-403.303866,0.00035616,10]
[383803794,1757123442132,-402.39861762,0.00035616,10]
[383803796,1757123442142,-400.0,0.00035616,10]
[383803797,1757123442151,-403.81432061,0.00035616,10]
[383803800,1757123442161,-405.43954912,0.00035616,10]
[383803802,1757123442171,-405.59699409,0.00035616,10]
[383803803,1757123442181,-500.0,0.00035616,10]
[383803806,1757123442191,-507.56907061,0.00035616,10]
[383803808,1757123442200,-422.32019859,0.00035616,10]
[383803810,1757123442213,-411.20969603,0.00035616,10]
[383803812,1757123442230,-404.63498774,0.00035616,10]
[383803814,1757123442240,-404.65442494,0.00035616,10]
[383803816,1757123442250,-400.0,0.00035616,10]
[383803819,1757123442260,-400.0,0.00035616,10]
[383803822,1757123442270,-408.71842796,0.00035616,10]
[383803825,1757123442280,-406.82279985,0.00035616,10]
[383803828,1757123442293,-451.0717578,0.00035616,10]
[383803831,1757123442302,-410.91430386,0.00035616,10]
[383803834,1757123442312,-406.28294088,0.00035616,10]
[383803837,1757123442322,-409.94628685,0.00035616,10]
[383803839,1757123442332,-400.0,0.00035616,10]
[383803841,1757123442341,-408.2216516,0.00035616,10]
[383803843,1757123442350,-403.37113488,0.00035616,10]
[383803845,1757123442359,-403.06807906,0.00035616,10]
[383803847,1757123442368,-401.19979743,0.00035616,10]
[383803849,1757123442377,-431.04098988,0.00035616,10]
[383803851,1757123442387,-410.91711937,0.00035616,10]
[383803853,1757123442396,-409.61385154,0.00035616,10]
[383803855,1757123442405,-417.62920336,0.00035616,10]
[383803857,1757123442414,-419.14186993,0.00035616,10]
[383803860,1757123442423,-400.0,0.00035616,10]
[383803863,1757123442433,-400.0,0.00035616,10]
[383803866,1757123442442,-403.26295877,0.00035616,10]
[383803869,1757123442451,-407.28536078,0.00035616,10]
[383803872,1757123442460,-400.0,0.00035616,10]
[383803874,1757123442469,-408.11833514,0.00035616,10]
[383803876,1757123442481,-411.24514486,0.00035616,10]
[383803878,1757123442490,-426.75320695,0.00035616,10]
[383803880,1757123442499,-403.38193654,0.00035616,10]
[383803882,1757123442508,-400.0,0.00035616,10]
[383803885,1757123442518,-400.0,0.00035616,10]
[383803888,1757123442528,-401.45929849,0.00035616,10]
[383803891,1757123442537,-409.86430284,0.00035616,10]
[383803894,1757123442546,-404.12979157,0.00035616,10]
[383803897,1757123442556,-400.0,0.00035616,10]
[383803900,1757123442565,-400.0,0.00035616,10]
[383803902,1757123442574,-300.0,0.00035616,10]
[383803905,1757123442583,-400.0,0.00035616,10]
[383803908,1757123442593,-400.0,0.00035616,10]
[383803911,1757123442603,-404.01329038,0.00035616,10]
[383803915,1757123442613,-400.0,0.00035616,10]
[383803918,1757123442624,-425.99156466,0.00035616,10]
[383803920,1757123442634,-405.74602215,0.00035616,10]
[383803924,1757123442644,-424.86219318,0.00035616,10]
[383803926,1757123442653,-402.45815397,0.00035616,10]
[383803929,1757123442664,-402.60310011,0.00035616,10]
[383803931,1757123442674,-411.03993339,0.00035616,10]
[383803933,1757123442684,-405.55323723,0.00035616,10]
[383803936,1757123442694,-400.0,0.00035616,10]
[383803939,1757123442704,-404.58007112,0.00035616,10]
[383803941,1757123442714,-402.93100348,0.00035616,10]
[383803943,1757123442723,-405.51477745,0.00035616,10]
[383803945,1757123442734,-404.58774793,0.00035616,10]
[383803947,1757123442743,-404.36520519,0.00035616,10]
[383803949,1757123442752,-400.0,0.00035616,10]
[383803951,1757123442762,-400.0,0.00035616,10]
[383803953,1757123442771,-400.0,0.00035616,10]
[383803955,1757123442781,-404.23400886,0.00035616,10]
[383803957,1757123442790,-402.94473436,0.00035616,10]
[383803959,1757123442800,-400.0,0.00035616,10]
[383803961,1757123442809,-408.93759966,0.00035616,10]
[383803963,1757123442819,-403.33714915,0.00035616,10]
[383803965,1757123442828,-400.0,0.00035616,10]
[383803967,1757123442838,-400.0,0.00035616,10]
[383803969,1757123442847,-408.55487825,0.00035616,10]
[383803971,1757123442856,-403.39875315,0.00035616,10]
[383803973,1757123442865,-400.0,0.00035616,10]
[383803975,1757123442877,-400.0,0.00035616,10]
[383803977,1757123442886,-405.92909583,0.00035616,10]
[383803979,1757123442895,-408.75328933,0.00035616,10]
[383803981,1757123442904,-403.04266849,0.00035616,10]
[383803982,1757123442913,-400.0,0.00035616,10]
[383803984,1757123442923,-400.0,0.00035616,10]
[383803987,1757123442932,-404.84278006,0.00035616,10]
[383803988,1757123442942,-341.79271391,0.00035616,10]
[383803990,1757123442951,-413.73163377,0.00035616,10]
[383803992,1757123442961,-402.3974272,0.00035616,10]
[383803994,1757123442970,-400.0,0.00035616,10]
[383803996,1757123442979,-433.87584349,0.00035616,10]
[383803998,1757123442989,-412.56162859,0.00035616,10]
[383804000,1757123442998,-400.0,0.00035616,10]
[383804002,1757123443008,-414.17265667,0.00035616,10]
[383804004,1757123443018,-400.0,0.00035616,10]
[383804006,1757123443027,-400.0,0.00035616,10]
[383804008,1757123443036,-400.0,0.00035616,10]
[383804010,1757123443046,-401.22835271,0.00035616,10]
[383804012,1757123443055,-415.27785755,0.00035616,10]
[383804014,1757123443064,-400.0,0.00035616,10]
[383804016,1757123443077,-400.0,0.00035616,10]
[383804018,1757123443087,-400.0,0.00035616,10]
[383804020,1757123443096,-413.92388098,0.00035616,10]
[383804022,1757123443104,-403.64222418,0.00035616,10]
[383804024,1757123443115,-407.16001558,0.00035616,10]
[383804026,1757123443125,-400.0,0.00035616,10]
[383804028,1757123443135,-408.57999948,0.00035616,10]
[383804030,1757123443144,-411.74862468,0.00035616,10]
[383804031,1757123443154,-403.67280807,0.00035616,10]
[383804032,1757123443164,-400.0,0.00035616,10]
[383804033,1757123443175,-407.73200622,0.00035616,10]
[383804034,1757123443184,-422.60706308,0.00035616,10]
[383804035,1757123443196,-400.0,0.00035616,10]
[383804036,1757123443207,-402.93790579,0.00035616,10]
[383804037,1757123443217,-403.01482106,0.00035616,10]
[383804038,1757123443226,-410.57069834,0.00035616,10]
[383804039,1757123443235,-400.0,0.00035616,10]
[383804040,1757123443245,-405.12041989,0.00035616,10]
[383804041,1757123443255,-400.0,0.00035616,10]
[383804043,1757123443268,-400.0,0.00035616,10]
[383804045,1757123443278,-400.0,0.00035616,10]
[383804047,1757123443287,-400.0,0.00035616,10]
[383804049,1757123443297,-400.0,0.00035616,10]
[383804051,1757123443307,-402.72516846,0.00035616,10]
[383804053,1757123443317,-403.02279711,0.00035616,10]
[383804054,1757123443326,-400.0,0.00035616,10]
[383804056,1757123443335,-402.74500828,0.00035616,10]
[383804059,1757123443344,-400.80326271,0.00035616,10]
[383804062,1757123443354,-400.0,0.00035616,10]
[383804065,1757123443371,-405.34893131,0.00035616,10]
[383804067,1757123443381,-400.0,0.00035616,10]
[383804070,1757123443390,-404.53159579,0.00035616,10]
[383804073,1757123443400,-404.19510236,0.00035616,10]
[383804075,1757123443409,-403.07531453,0.00035616,10]
[383804077,1757123443419,-402.14040214,0.00035616,10]
[383804079,1757123443428,-400.0,0.00035616,10]
[383804081,1757123443437,-407.26521308,0.00035616,10]
[383804083,1757123443447,-400.0,0.00035616,10]
[383804085,1757123443456,-413.19400677,0.00035616,10]
[383804087,1757123443466,-400.0,0.00035616,10]
[383804089,1757123443475,-400.0,0.00035616,10]
[383804091,1757123443484,-400.0,0.00035616,10]
[383804093,1757123443493,-400.0,0.00035616,10]
[383804095,1757123443503,-404.31232324,0.00035616,10]
[383804097,1757123443512,-400.0,0.00035616,10]
[383804099,1757123443521,-406.22440098,0.00035616,10]
[383804101,1757123443530,-405.69391844,0.00035616,10]
[383804103,1757123443539,-429.52417613,0.00035616,10]
[383804105,1757123443548,-408.23900168,0.00035616,10]
[383804107,1757123443558,-400.0,0.00035616,10]
[383804109,1757123443567,-408.09704546,0.00035616,10]
[383804111,1757123443577,-407.16019904,0.00035616,10]
[383804113,1757123443586,-400.0,0.00035616,10]
[383804115,1757123443597,-400.0,0.00035616,10]
[383804117,1757123443606,-401.51171586,0.00035616,10]
[383804119,1757123443615,-414.5043561,0.00035616,10]
[383804121,1757123443625,-424.29611059,0.00035616,10]
[383804123,1757123443635,-410.10004596,0.00035616,10]
[383804125,1757123443644,-443.03315481,0.00035616,10]
[383804127,1757123443653,-408.22977264,0.00035616,10]
[383804129,1757123443663,-406.46357662,0.00035616,10]
[383804131,1757123443673,-400.0,0.00035616,10]
[383804133,1757123443681,-406.6169045,0.00035616,10]
[383804135,1757123443691,-424.24509355,0.00035616,10]
[383804137,1757123443700,-400.0,0.00035616,10]
[383804139,1757123443709,-412.80026644,0.00035616,10]
[383804141,1757123443718,-410.10855189,0.00035616,10]
[383804143,1757123443727,-400.0,0.00035616,10]
[383804145,1757123443737,-402.39866662,0.00035616,10]
[383804147,1757123443746,-405.38744451,0.00035616,10]
[383804149,1757123443755,-400.0,0.00035616,10]
[383804151,1757123443764,-404.71450649,0.00035616,10]